bitfinex/quotes_ETHUSD_20230116
["timestamp","ask_amount","ask_price","bid_price","bid_amount"]
[1673836970682,27.6405,1578.3,1577.9,14.10658]
[1673836971151,28.58851713,1578.3,1577.9,14.10658]
[1673836971317,4.25575388,1578.4,1577.9,7.76913]
[1673836971318,11.53932101,1578.4,1577.9,7.76913]
[1673836971527,3.39979181,1578.4,1578.0,3.0]
[1673836971772,1.42341713,1578.4,1578.0,3.0]
[1673836972517,1.42341713,1578.4,1578.0,9.33705]
[1673836972681,0.4754,1578.4,1578.0,9.33705]
[1673836972889,2.99551379,1578.4,1578.0,9.33705]
[1673836973103,0.4754,1578.4,1578.0,9.33705]
[1673836973463,0.4754,1578.4,1578.0,12.48978593]
[1673836973659,29.52272146,1578.5,1578.0,12.48978593]
[1673836973869,29.52272146,1578.5,1578.0,9.34052493]
[1673836974690,20.82901713,1578.5,1578.0,17.11865493]
[1673836975130,20.82901713,1578.5,1578.0,9.34052493]
[1673836975312,29.52218706,1578.5,1578.0,9.34052493]
[1673836976471,35.85734706,1578.5,1578.0,9.34052493]
[1673836976689,33.49933713,1578.5,1578.0,9.34052493]
[1673836977410,27.16417713,1578.5,1578.0,9.34052493]
[1673836977869,35.85737466,1578.5,1578.0,3.00347493]
[1673836978037,33.49929713,1578.5,1578.0,3.00347493]
[1673836978492,32.55128,1578.5,1578.0,3.00347493]
[1673836979123,33.49929713,1578.5,1578.0,3.00347493]
[1673836979332,36.77208391,1578.5,1578.0,0.00347493]
[1673836979665,39.62115346,1578.5,1577.9,3.0]
[1673836979877,30.01320668,1578.5,1577.9,9.33746]
[1673836980189,22.71173395,1578.5,1577.9,15.67949985]
[1673836980404,19.4056,1578.5,1578.1,14.10301]
[1673836980764,19.4056,1578.5,1578.2,0.64633918]
[1673836981291,11.06277134,1578.6,1578.2,0.64633918]
[1673836981504,8.70482668,1578.6,1578.2,0.64633918]
[1673836981922,1.42341713,1578.5,1578.2,0.64633918]
[1673836982507,2.57723426,1578.5,1578.0,7.78244957]
[1673836982816,0.64633918,1578.1,1578.0,27.93224957]
[1673836982981,0.64633918,1578.1,1578.0,3.00450957]
[1673836983448,0.6426363,1578.1,1578.0,3.00450957]
[1673836983660,0.6426363,1578.1,1578.0,3.0]
[1673836984025,0.6426363,1578.1,1577.9,3.0]
[1673836984865,0.64712032,1578.0,1577.9,3.0]
[1673836985719,0.64712032,1578.0,1577.9,3.933758]
[1673836985932,0.64712032,1578.0,1577.9,16.61828244]
[1673836986470,0.64712032,1578.0,1577.9,18.70562162]
[1673836988991,0.64712032,1578.0,1577.9,18.05928244]
[1673836989189,0.64712032,1578.0,1577.9,10.28075244]
[1673836989643,0.64712032,1578.0,1577.9,3.0]
[1673836990033,0.64712032,1578.0,1577.8,3.0]
[1673836990382,0.64712032,1578.0,1577.8,9.33789]
[1673836992058,0.64712032,1578.0,1577.7,1e-08]
[1673836992059,8.42539032,1578.0,1577.7,1e-08]
[1673836992268,1.31803903,1577.9,1577.7,1e-08]
[1673836992511,7.65570903,1577.9,1577.7,1e-08]
[1673836993575,13.99337903,1577.9,1577.7,1e-08]
[1673836994097,18.74123926,1577.9,1577.7,1e-08]
[1673836994413,18.74124501,1577.9,1577.7,1e-08]
[1673836994635,1.8741245,1577.8,1577.7,1e-08]
[1673836994797,14.5499845,1577.8,1577.7,1e-08]
[1673836995882,8.2120545,1577.8,1577.7,1e-08]
[1673836996037,0.4756,1577.8,1577.7,1e-08]
[1673836997132,0.4755,1577.9,1577.7,1e-08]
[1673836997455,0.64712032,1578.0,1577.7,6.98458919]
[1673836997612,0.64712032,1578.0,1577.8,1.434]
[1673836998181,0.64712032,1578.0,1577.9,14.11606]
[1673836998354,0.64712032,1578.0,1577.9,16.5601553]
[1673836998719,0.64712032,1578.0,1577.9,20.20649448]
[1673836998888,0.64712032,1578.0,1577.9,19.5601553]
[1673836999102,0.64712032,1578.0,1577.9,20.20649448]
[1673837000717,0.64712032,1578.0,1577.9,7.53143448]
[1673837000923,0.64712032,1578.0,1577.9,17.15013338]
[1673837001087,0.64712032,1578.0,1577.7,6.33804001]
[1673837001301,0.64712032,1578.0,1577.7,15.67608001]
[1673837002482,0.64712032,1578.0,1577.7,9.33804001]
[1673837007135,0.64712032,1578.0,1577.7,3.00000001]
[1673837007308,1.50457069,1578.0,1577.7,3.00000001]
[1673837008919,0.64712032,1578.0,1577.7,16.61085549]
[1673837009079,0.64712032,1578.0,1577.9,1.43]
[1673837009292,0.64712032,1578.0,1577.9,7.76753]
[1673837009583,0.64712032,1578.0,1577.8,11.42200918]
[1673837009712,0.64712032,1578.0,1577.8,0.64633918]
[1673837010709,0.64712032,1578.0,1577.8,0.64305905]
[1673837011243,0.64712032,1578.0,1577.7,17.25695467]
[1673837011712,0.64712032,1578.0,1577.7,10.91879467]
[1673837012127,0.64712032,1578.0,1577.7,14.15290592]
[1673837012805,0.64712032,1578.0,1577.8,1.441]
[1673837012981,0.64712032,1578.0,1577.9,6.33753]
[1673837014065,0.64712032,1578.0,1577.8,8.42496918]
[1673837015133,0.64712032,1578.0,1577.8,7.77863]
[1673837015348,0.64712032,1578.0,1577.8,1.441]
[1673837015503,0.64712032,1578.0,1577.8,4.441]
[1673837015716,0.64712032,1578.0,1577.8,3.0]
[1673837017708,0.64712032,1578.0,1577.7,8.45164689]
[1673837019098,0.64712032,1578.0,1577.7,17.88656559]
[1673837019539,0.64712032,1578.0,1577.7,18.82092107]
[1673837020804,0.64712032,1578.0,1577.8,14.11348]
[1673837022063,0.64712032,1578.0,1577.8,14.75981918]
[1673837022282,0.64712032,1578.0,1577.8,14.11348]
[1673837022598,0.64712032,1578.0,1577.9,1.411348]
[1673837023069,0.64712032,1578.0,1577.9,7.748878]
[1673837024323,0.64712032,1578.0,1577.8,14.11348]
[1673837024537,0.64712032,1578.0,1577.9,1.441]
[1673837024859,0.64712032,1578.0,1577.9,19.49141548]
[1673837025063,0.64712032,1578.0,1577.9,21.53928788]
[1673837025301,0.64712032,1578.0,1577.9,20.13775466]
[1673837025514,0.64712032,1578.0,1577.9,23.57949028]
[1673837025737,0.64712032,1578.0,1577.9,25.67820124]
[1673837026287,0.64712032,1578.0,1577.9,25.44820124]
[1673837026497,0.64712032,1578.0,1577.9,23.57949028]
[1673837027633,0.64712032,1578.0,1577.9,25.67820124]
[1673837027864,0.64712032,1578.0,1577.9,25.71227462]
[1673837028755,0.49146798,1578.0,1577.9,26.65100897]
[1673837029410,0.49146798,1578.0,1577.9,24.31512027]
[1673837030452,20.11259108,1578.8,1577.9,24.31512027]
[1673837030664,20.11259108,1578.8,1578.4,7.77325]
[1673837030920,20.11259108,1578.8,1578.5,3.0]
[1673837031102,18.68927395,1578.8,1578.5,9.33509]
[1673837031510,0.09387395,1578.8,1578.5,9.33509]
[1673837031725,0.09387395,1578.8,1578.5,11.11055792]
[1673837033072,0.09387395,1578.8,1578.5,12.54255792]
[1673837033507,0.09387395,1578.8,1578.7,1.434]
[1673837033721,0.09387395,1578.8,1578.7,7.76832]
[1673837033963,0.09387395,1578.8,1578.7,8.41465918]
[1673837034170,0.09387395,1578.8,1578.7,13.5230111]
[1673837034382,0.09387395,1578.8,1578.7,19.8573311]
[1673837039370,0.09387395,1578.8,1578.7,21.5283311]
[1673837039582,0.13751946,1579.1,1578.8,0.00307781]
[1673837039829,0.13751946,1579.1,1579.0,1.434]
[1673837040017,0.13751946,1579.1,1579.0,14.10024]
[1673837040238,0.08751946,1579.1,1579.0,17.7496566]
[1673837041469,0.76451946,1579.1,1579.0,15.66624]
[1673837041936,0.76451946,1579.1,1579.0,9.33312]
[1673837042627,0.08751946,1579.1,1579.0,9.33312]
[1673837042833,0.08751946,1579.1,1579.0,18.685256]
[1673837043104,0.08751946,1579.1,1579.0,20.117256]
[1673837043621,0.03751946,1579.1,1579.0,20.117256]
[1673837045891,0.03751946,1579.1,1579.0,20.12038892]
[1673837046305,0.03751946,1579.1,1579.0,22.4297281]
[1673837047407,0.03751946,1579.1,1579.0,20.9977281]
[1673837047614,0.03751946,1579.1,1579.0,20.7677281]
[1673837048838,0.03751946,1579.1,1579.0,20.9977281]
[1673837049049,0.03751946,1579.1,1579.0,19.3347281]
[1673837053398,0.03751946,1579.1,1579.0,16.31257918]
[1673837054866,0.03751946,1579.1,1579.0,17.74257918]
[1673837059070,0.03751946,1579.1,1579.0,17.09624]
[1673837059602,0.03751946,1579.1,1579.0,17.74257918]
[1673837061350,0.03751946,1579.1,1579.0,17.09624]
[1673837061538,0.03751946,1579.1,1579.0,21.03574101]
[1673837061962,0.03751946,1579.1,1579.0,21.68208019]
[1673837063870,0.03467916,1579.1,1579.0,21.68208019]
[1673837064706,0.03467916,1579.1,1579.0,20.25208019]
[1673837064919,0.03467916,1579.1,1579.0,16.31257918]
[1673837065169,0.03467916,1579.1,1579.0,15.66624]
[1673837066003,0.03467916,1579.1,1579.0,16.31257918]
[1673837066961,0.03467916,1579.1,1579.0,9.97945918]
[1673837067128,0.71167916,1579.1,1579.0,15.66624]
[1673837067508,0.71167916,1579.1,1579.0,6.33312]
[1673837067690,0.71167916,1579.1,1579.0,12.66624]
[1673837068482,0.03467916,1579.1,1579.0,12.66624]
[1673837068691,0.03467916,1579.1,1579.0,15.66624]
[1673837068901,0.71167916,1579.1,1579.0,15.66624]
[1673837069637,0.03467916,1579.1,1579.0,15.66624]
[1673837071309,0.71167916,1579.1,1579.0,15.66624]
[1673837071681,0.71167916,1579.1,1579.0,9.33312]
[1673837071872,0.03467916,1579.1,1579.0,9.33312]
[1673837072085,0.03467916,1579.1,1579.0,15.66624]
[1673837073154,0.71167916,1579.1,1579.0,15.66624]
[1673837073384,0.78284708,1579.1,1579.0,3.0]
[1673837073880,0.78284708,1579.1,1579.0,6.33312]
[1673837074098,0.71167916,1579.1,1579.0,6.33312]
[1673837075413,1.18687916,1579.1,1579.0,6.33312]
[1673837075631,0.71167916,1579.1,1579.0,6.33312]
[1673837076483,0.71167916,1579.1,1579.0,12.66624]
[1673837076484,0.03467916,1579.1,1579.0,12.66624]
[1673837077251,0.03467916,1579.1,1579.0,16.31257918]
[1673837077459,0.03467916,1579.1,1579.0,18.7203511]
[1673837078348,0.03467916,1579.1,1579.0,16.31257918]
[1673837085886,0.03467916,1579.1,1579.0,15.66624]
[1673837086047,0.03467916,1579.1,1579.0,16.31257918]
[1673837087022,0.03092187,1579.1,1579.0,16.31257918]
[1673837087651,0.03092187,1579.1,1579.0,15.66624]
[1673837088984,0.03092187,1579.1,1579.0,16.31257918]
[1673837089245,0.03092187,1579.1,1579.0,18.67366652]
[1673837090261,0.03092187,1579.1,1579.0,19.60962113]
[1673837091982,0.03092187,1579.1,1579.0,18.02732734]
[1673837092142,0.03092187,1579.1,1579.0,16.31257918]
[1673837092507,0.70792187,1579.1,1579.0,15.66624]
[1673837093021,0.03092187,1579.1,1579.0,15.66624]
[1673837094039,0.03092187,1579.1,1579.0,16.95891836]
[1673837094242,0.03092187,1579.1,1579.0,16.31257918]
[1673837094456,0.03092187,1579.1,1579.0,18.67074656]
[1673837095041,0.03092187,1579.1,1579.0,19.64075082]
[1673837096611,0.03092187,1579.1,1579.0,21.08175082]
[1673837096837,0.03092187,1579.1,1579.0,22.24888604]
[1673837097133,0.03092187,1579.1,1579.0,24.58477474]
[1673837097675,0.03092187,1579.1,1579.0,23.93843556]
[1673837098090,0.03092187,1579.1,1579.0,24.58477474]
[1673837098468,0.0229837,1579.1,1579.0,22.71168491]
[1673837098694,0.0229837,1579.1,1579.0,24.58038896]
[1673837099123,3.7e-06,1579.1,1579.0,22.71168491]
[1673837099344,0.13897771,1579.3,1579.0,22.71168491]
[1673837099652,0.13897771,1579.3,1579.2,32.41552351]
[1673837099837,0.13897771,1579.3,1579.2,33.30963481]
[1673837100043,0.13897771,1579.3,1579.2,34.60231317]
[1673837100249,0.13897771,1579.3,1579.2,36.29186269]
[1673837100495,0.13897771,1579.3,1579.2,44.08836269]
[1673837100708,0.13897771,1579.3,1579.2,49.91135581]
[1673837101465,0.13897771,1579.3,1579.2,45.43782138]
[1673837101615,0.13897771,1579.3,1579.2,44.97080639]
[1673837102308,0.13897771,1579.3,1579.2,46.37251547]
[1673837102520,0.13897771,1579.3,1579.2,46.63339099]
[1673837102829,0.13897771,1579.3,1579.2,45.6986969]
[1673837103132,0.13897771,1579.3,1579.2,45.69919129]
[1673837103352,0.13897771,1579.3,1579.2,47.60634263]
[1673837103715,0.13897771,1579.3,1579.2,49.94223133]
[1673837103943,0.13897771,1579.3,1579.2,47.60634263]
[1673837105689,0.13897771,1579.3,1579.2,49.00641592]
[1673837106058,0.13897771,1579.3,1579.2,47.13806111]
[1673837107639,0.13897771,1579.3,1579.2,37.05745312]
[1673837108580,0.13897771,1579.3,1579.2,37.7037923]
[1673837110002,0.13897771,1579.3,1579.2,30.43979918]
[1673837110168,0.13897771,1579.3,1579.2,29.79346]
[1673837110938,0.13897771,1579.3,1579.2,21.99696]
[1673837113018,0.13897771,1579.3,1579.2,15.66464]
[1673837113230,0.13897771,1579.3,1579.2,12.66464]
[1673837113966,0.13897771,1579.3,1579.2,6.33232]
[1673837114181,0.13897771,1579.3,1579.1,6.3324]
[1673837114642,0.13897771,1579.3,1579.2,3.0]
[1673837115564,0.61407771,1579.3,1579.2,3.0]
[1673837116600,0.68962091,1579.3,1579.0,6.33292]
[1673837116818,0.4751,1579.2,1579.0,6.33292]
[1673837121258,0.4751,1579.2,1578.9,9.33343]
[1673837121486,0.4251,1579.2,1578.9,9.33343]
[1673837121700,0.63216209,1579.2,1578.9,9.33343]
[1673837122447,0.4251,1579.2,1578.9,15.66695]
[1673837124771,0.61407771,1579.3,1578.9,17.10495]
[1673837124941,0.61407771,1579.3,1578.9,15.66695]
[1673837125287,0.61407771,1579.3,1578.9,16.60008065]
[1673837126915,0.61407771,1579.3,1578.9,15.66695]
[1673837127128,3.61933091,1579.3,1578.9,15.66695]
[1673837127981,3.61933091,1579.3,1578.9,3.0]
[1673837128204,1.435,1579.1,1578.9,3.0]
[1673837128396,1.435,1579.1,1578.8,3.0]
[1673837128593,0.4752,1579.0,1578.7,6.33432]
[1673837128995,0.4752,1579.0,1578.7,12.66864]
[1673837129285,8.1533,1579.1,1578.7,12.66475221]
[1673837129593,0.78203393,1579.0,1578.7,12.66475221]
[1673837129809,1.441,1578.9,1578.6,6.3345]
[1673837130173,1.441,1578.9,1578.5,42.9797]
[1673837130384,0.4753,1578.8,1578.5,12.6697]
[1673837130851,1.9162,1578.9,1578.5,12.6697]
[1673837131067,0.19162,1578.8,1578.5,12.6697]
[1673837132711,1.9162,1578.9,1578.5,12.6697]
[1673837132902,18.57,1579.1,1578.5,21.08515918]
[1673837133116,18.0948,1579.1,1578.5,21.08515918]
[1673837133453,18.57,1579.1,1578.5,21.08515918]
[1673837133642,18.57,1579.1,1578.6,2.10851592]
[1673837133853,18.57,1579.1,1578.7,12.6684]
[1673837134103,18.57,1579.1,1578.7,13.96107836]
[1673837134314,18.57,1579.1,1578.7,13.31473918]
[1673837134688,18.57,1579.1,1578.7,0.64633918]
[1673837134957,1.857,1579.0,1578.7,0.64633918]
[1673837135166,0.4752,1578.9,1578.6,6.33472]
[1673837136220,8.23972,1578.9,1578.4,17.7020863]
[1673837136379,2.264972,1578.8,1578.4,0.0686263]
[1673837136585,1.428,1578.7,1578.4,0.0686263]
[1673837136809,1.9033,1578.7,1578.4,0.0686263]
[1673837137222,8.23768,1578.7,1578.4,0.0686263]
[1673837137437,0.823768,1578.6,1578.4,0.0686263]
[1673837137845,1.9033,1578.7,1578.4,0.0686263]
[1673837140914,7.77572,1578.6,1578.4,0.0686263]
[1673837141755,1.441,1578.5,1578.4,0.0686263]
[1673837141980,1.9164,1578.5,1578.4,0.0686263]
[1673837142317,8.25152,1578.5,1578.4,0.0686263]
[1673837142473,9.854244,1578.5,1578.4,0.0686263]
[1673837143832,16.189364,1578.5,1578.2,0.0686263]
[1673837144047,1.441,1578.3,1578.2,0.0686263]
[1673837144529,8.25233,1578.3,1578.2,0.0686263]
[1673837144901,9.69333,1578.3,1578.2,0.0686263]
[1673837145133,17.38985113,1578.3,1578.2,0.0686263]
[1673837145464,11.05392113,1578.3,1578.2,0.0686263]
[1673837146303,17.38985113,1578.3,1578.2,0.0686263]
[1673837147665,17.61985113,1578.3,1578.2,0.0686263]
[1673837147829,20.89263791,1578.3,1578.2,0.0686263]
[1673837148684,28.60523791,1578.3,1578.2,0.0686263]
[1673837150675,0.00785612,1578.1,1577.8,0.07488231]
[1673837150919,2.876,1577.9,1577.8,0.07488231]
[1673837151151,19.52934678,1577.9,1577.8,0.07488231]
[1673837152351,23.10541779,1577.9,1577.8,0.07488231]
[1673837152556,19.52934678,1577.9,1577.8,0.07488231]
[1673837152827,21.13207078,1577.9,1577.8,0.07488231]
[1673837153298,24.70918124,1577.9,1577.8,0.07488231]
[1673837153507,21.13207078,1577.9,1577.8,0.07488231]
[1673837154591,27.70918124,1577.9,1577.8,0.07488231]
[1673837154814,24.13207078,1577.9,1577.8,0.07488231]
[1673837156068,20.629284,1577.9,1577.8,0.07488231]
[1673837156278,23.90207078,1577.9,1577.8,0.07488231]
[1673837157396,24.13207078,1577.9,1577.8,0.07488231]
[1673837157604,27.70918124,1577.9,1577.8,0.07488231]
[1673837159099,27.70918124,1577.9,1577.6,0.07386465]
[1673837159100,19.74666025,1577.7,1577.6,0.07386465]
[1673837159292,35.96574862,1577.7,1577.6,0.07386465]
[1673837160031,32.38863816,1577.7,1577.6,0.07386465]
[1673837160777,52.96540244,1577.7,1577.6,0.07386465]
[1673837161017,52.96540244,1577.7,1577.5,1.07479946]
[1673837161018,53.03849244,1577.7,1577.5,1.07479946]
[1673837161341,53.03849244,1577.7,1577.4,0.00538947]
[1673837161342,15.77486991,1577.6,1577.4,0.00538947]
[1673837161552,35.13464836,1577.5,1577.4,0.00538947]
[1673837161765,35.84034836,1577.5,1577.4,0.00538947]
[1673837162078,35.27213678,1577.5,1577.4,0.00538947]
[1673837162247,35.27213678,1577.5,1577.3,0.03212257]
[1673837162441,11.45421078,1577.4,1577.3,0.03212257]
[1673837162649,24.13329078,1577.4,1577.3,0.03212257]
[1673837163209,12.849964,1577.4,1577.3,0.03212257]
[1673837163961,12.849964,1577.4,1577.1,0.08186813]
[1673837164333,4.93378678,1577.3,1577.1,0.08186813]
[1673837164542,6.29437791,1577.3,1577.1,0.08186813]
[1673837164809,18.97425791,1577.3,1577.1,0.08186813]
[1673837165180,22.54003593,1577.3,1577.1,0.08186813]
[1673837165485,25.54002513,1577.3,1577.1,0.08186813]
[1673837165647,21.97425791,1577.3,1577.1,0.08186813]
[1673837165862,22.44995791,1577.3,1577.1,0.07986814]
[1673837166036,21.68813878,1577.2,1577.1,0.07986814]
[1673837166243,21.91813878,1577.2,1577.1,0.07986814]
[1673837167318,26.91860819,1577.2,1577.1,0.07986814]
[1673837167528,30.89603878,1577.2,1577.1,0.07986814]
[1673837167755,1.602724,1577.1,1576.8,0.07333281]
[1673837167912,1.441,1576.9,1576.8,0.07333281]
[1673837168120,18.10038038,1576.9,1576.8,0.07333281]
[1673837168401,25.9601487,1576.9,1576.8,0.07333281]
[1673837168604,55.9153487,1576.9,1576.6,0.0764219]
[1673837168818,23.73086678,1576.7,1576.6,0.0764219]
[1673837168961,27.20676678,1576.7,1576.6,0.0764219]
[1673837169171,31.00601038,1576.7,1576.6,0.0764219]
[1673837169391,28.33382878,1576.7,1576.6,0.0764219]
[1673837170024,14.21810878,1576.7,1576.6,0.0764219]
[1673837170235,7.87574878,1576.7,1576.6,0.0764219]
[1673837170481,4.64574878,1576.7,1576.6,0.0764219]
[1673837170691,0.75009,1576.7,1576.6,0.0764219]
[1673837171062,18.29550678,1576.7,1576.6,0.0764219]
[1673837171535,0.73257117,1576.5,1576.4,0.07237281]
[1673837171742,23.26483795,1576.5,1576.4,0.07237281]
[1673837171961,24.70583795,1576.5,1576.4,0.07237281]
[1673837172114,27.13253395,1576.5,1576.4,0.07237281]
[1673837172317,46.13043391,1576.5,1576.4,0.07237281]
[1673837172568,49.67952391,1576.5,1576.4,0.07237281]
[1673837172793,6.658,1576.3,1575.4,1.4406889]
[1673837173074,1.441,1575.9,1575.4,0.0076889]
[1673837173241,6.83419313,1575.8,1575.4,0.0076889]
[1673837173458,1.431,1575.5,1574.8,18.20445872]
[1673837173628,9.62041678,1575.4,1574.8,1.686978]
[1673837173819,11.36127746,1575.4,1574.8,0.253978]
[1673837174046,3.27278678,1575.3,1574.8,0.253978]
[1673837174293,4.70478678,1575.2,1574.8,0.253978]
[1673837174467,6.82492,1575.2,1574.8,0.253978]
[1673837174671,11.52523678,1575.3,1574.8,0.253978]
[1673837174883,3.27278678,1575.3,1574.8,0.253978]
[1673837175114,9.34709,1575.6,1574.9,0.64633918]
[1673837175446,3.27278678,1575.6,1575.3,1.432]
[1673837175614,3.27278678,1575.6,1575.2,1.441]
[1673837175827,12.76603,1575.7,1575.2,1.441]
[1673837175828,0.07309,1575.7,1575.2,1.441]
[1673837176028,6.8222,1575.8,1575.2,2.08733918]
[1673837176241,9.61878678,1575.8,1575.3,0.20873392]
[1673837176882,15.96478678,1575.8,1575.3,0.8550731]
[1673837177112,16.44098678,1575.8,1575.3,0.20873392]
[1673837177331,6.34533,1576.0,1575.4,0.64633918]
[1673837177494,12.04481278,1576.0,1575.5,1.433]
[1673837177914,25.81429,1576.1,1575.6,1.434]
[1673837178178,6.34447,1576.2,1575.7,1.441]
[1673837178367,3.27278678,1576.2,1575.7,2.08733918]
[1673837178920,3.27278678,1576.2,1575.6,1.434]
[1673837178921,15.96275678,1576.1,1575.6,1.434]
[1673837179114,12.69156,1575.9,1575.2,1.441]
[1673837179340,8.10438258,1575.8,1575.1,9.2603]
[1673837179489,15.96614678,1575.7,1575.1,1.441]
[1673837179704,9.61946678,1575.7,1575.1,7.78979]
[1673837179912,9.61946678,1575.7,1575.1,1.441]
[1673837179913,6.3472,1575.5,1575.1,1.441]
[1673837180126,9.61998678,1575.5,1575.0,1.432]
[1673837180453,11.21666946,1575.5,1575.0,1.432]
[1673837180785,11.21666946,1575.5,1574.9,12.4757]
[1673837180962,1.441,1575.2,1574.8,0.253978]
[1673837181173,0.4764,1575.1,1574.8,0.253978]
[1673837181651,12.9107098,1575.3,1574.8,0.253978]
[1673837181652,0.4764,1575.2,1574.8,0.253978]
[1673837181818,10.94667242,1575.2,1574.8,0.253978]
[1673837182237,17.29508242,1575.2,1574.8,0.253978]
[1673837182649,10.94667242,1575.2,1574.8,0.253978]
[1673837183068,10.94667242,1575.2,1574.7,0.03745074]
[1673837183483,4.59826242,1575.2,1574.7,0.03745074]
[1673837184167,4.59826242,1575.2,1574.7,6.38769074]
[1673837184479,0.4764,1575.2,1574.7,7.16951581]
[1673837184792,3.27278678,1575.2,1574.7,1.47045074]
[1673837185540,0.4763,1575.3,1574.7,14.17112074]
[1673837185767,13.17183,1575.4,1574.7,7.82071074]
[1673837185987,3.27278678,1575.2,1574.7,0.03745074]
[1673837186297,0.32727868,1575.1,1574.7,0.03745074]
[1673837186872,9.94893546,1575.1,1574.7,0.03745074]
[1673837187082,16.29780546,1575.1,1574.6,1.441]
[1673837187312,16.29780546,1575.1,1574.5,1.19863102]
[1673837187313,15.97165678,1575.0,1574.5,1.19863102]
[1673837187531,15.97165678,1575.0,1574.5,4.19863102]
[1673837187743,1.59716568,1574.9,1574.5,4.19863102]
[1673837187964,7.94680568,1574.9,1574.5,4.19863102]
[1673837188340,17.56923246,1574.9,1574.5,1.19863102]
[1673837188981,17.56923246,1574.9,1574.5,1.13856987]
[1673837189194,3.27278678,1574.8,1574.5,1.13856987]
[1673837189446,0.32727868,1574.7,1574.5,1.13856987]
[1673837189661,15.97440678,1574.6,1574.5,1e-08]
[1673837189883,17.89190678,1574.6,1574.5,1e-08]
[1673837190625,35.19499678,1574.6,1574.5,1e-08]
[1673837190756,21.19499678,1574.6,1574.5,1e-08]
[1673837191661,21.19499678,1574.6,1574.2,0.10647963]
[1673837191662,0.00199999,1574.4,1574.2,0.10647963]
[1673837191908,9.62480678,1574.3,1574.2,0.10647963]
[1673837192023,0.4766,1574.3,1574.2,0.10647963]
[1673837192239,0.00199999,1574.4,1574.2,0.10647963]
[1673837192451,0.00199999,1574.4,1574.2,0.75281881]
[1673837192703,0.00199999,1574.4,1574.2,13.45757881]
[1673837193339,0.00199999,1574.4,1574.3,0.64633918]
[1673837193570,0.00199999,1574.4,1574.2,1.54747963]
[1673837193859,0.00199999,1574.4,1574.2,11.54610881]
[1673837194264,0.00199999,1574.4,1574.2,8.54610881]
[1673837194593,0.00199999,1574.4,1574.2,7.10510881]
[1673837194827,0.00199999,1574.4,1574.2,0.75281881]
[1673837195117,0.00199999,1574.4,1574.2,0.10647963]
[1673837195342,0.00199999,1574.4,1574.2,7.89444277]
[1673837195715,0.00199999,1574.4,1574.3,1.435]
[1673837195885,0.00199999,1574.4,1574.3,7.78702]
[1673837196247,0.00199999,1574.4,1574.3,14.78537918]
[1673837196597,0.00199999,1574.4,1574.3,14.81750135]
[1673837196808,0.00199999,1574.4,1574.3,20.02406184]
[1673837197514,0.07309,1574.9,1574.3,21.68406184]
[1673837197734,0.4763,1575.4,1574.8,1.441]
[1673837198065,0.4763,1575.4,1574.7,6.35022]
[1673837198066,9.69398678,1575.3,1574.7,6.35022]
[1673837198246,9.69398678,1575.3,1574.6,17.59466]
[1673837198247,11.06709546,1575.2,1574.6,17.59466]
[1673837198453,3.27278678,1575.1,1574.6,23.94522]
[1673837198663,1.51888868,1575.2,1574.7,1.438]
[1673837198878,0.07309,1575.2,1574.8,12.69962]
[1673837199501,0.07309,1575.2,1574.8,14.13362]
[1673837199716,0.4763,1575.4,1574.8,14.13362]
[1673837199921,0.08846065,1575.2,1574.8,14.13362]
[1673837200182,0.08846065,1575.2,1574.8,7.78381]
[1673837200183,3.36124743,1575.2,1574.8,7.78381]
[1673837200507,4.08531152,1575.1,1574.7,7.79103]
[1673837200706,3.27278678,1575.0,1574.6,6.35073]
[1673837200906,3.74918678,1575.0,1574.6,6.35073]
[1673837201326,0.4764,1575.0,1574.6,14.13954]
[1673837201534,3.74918678,1575.0,1574.6,12.70154]
[1673837201724,0.37491868,1574.9,1574.5,12.70703417]
[1673837202447,0.40921474,1575.1,1574.5,14.14803417]
[1673837202675,0.07309,1575.1,1574.8,12.69988]
[1673837203647,0.54949,1575.1,1574.8,12.69988]
[1673837203866,0.07309,1575.1,1574.8,12.69988]
[1673837204463,0.07309,1575.1,1574.8,14.13488]
[1673837204691,0.08846065,1575.2,1574.8,14.78121918]
[1673837204905,0.08846065,1575.2,1574.8,16.89488045]
[1673837205314,0.08846065,1575.2,1574.8,16.74588045]
[1673837205764,3.36124743,1575.2,1574.8,14.63221918]
[1673837205985,3.36124743,1575.2,1574.8,13.34621918]
[1673837206658,3.27278678,1575.1,1574.8,6.34993]
[1673837207865,3.27278678,1575.1,1574.8,12.69994]
[1673837208294,0.08846065,1575.2,1574.8,12.69994]
[1673837208980,0.08846065,1575.2,1574.9,1.286]
[1673837209187,0.08846065,1575.2,1575.0,20.3336]
[1673837209393,0.08846065,1575.2,1575.1,15.6976]
[1673837209659,0.08846065,1575.2,1575.1,17.62993918]
[1673837209813,0.08846065,1575.2,1575.1,17.636136]
[1673837210024,0.08846065,1575.2,1575.1,20.7981896]
[1673837211128,0.08846065,1575.2,1575.1,20.15185042]
[1673837211347,0.08846065,1575.2,1575.1,20.7981896]
[1673837212502,0.08846065,1575.2,1575.1,17.636136]
[1673837212879,0.08846065,1575.2,1575.1,14.636136]
[1673837213443,0.08846065,1575.2,1575.0,6.3492]
[1673837213600,0.08846065,1575.2,1574.9,20.82243]
[1673837213811,0.08846065,1575.2,1574.9,12.69863]
[1673837214289,0.08846065,1575.2,1574.9,6.3493]
[1673837214438,3.36124743,1575.2,1574.8,19.20899]
[1673837214646,3.60891152,1575.1,1574.7,6.35016]
[1673837215325,3.27278678,1575.0,1574.6,8.0591]
[1673837215542,3.74918678,1574.9,1574.5,13.013]
[1673837215763,3.74918678,1574.9,1574.4,43.01261]
[1673837216125,5.02518678,1574.9,1574.4,6.35127]
[1673837216350,3.77530546,1574.8,1574.3,8.2586]
[1673837216703,0.4765,1574.7,1574.3,20.96248]
[1673837217033,0.4765,1574.7,1574.3,12.70388]
[1673837217221,0.92929905,1575.0,1574.4,1.286]
[1673837217381,0.45289905,1575.0,1574.5,12.70187]
[1673837217596,1.34518143,1575.0,1574.5,12.70187]
[1673837218062,1.82158143,1575.0,1574.5,12.70187]
[1673837218311,1.34518143,1575.0,1574.5,12.70187]
[1673837218487,1.34518143,1575.0,1574.5,13.98787]
[1673837218488,0.45289905,1575.0,1574.5,13.98787]
[1673837218796,0.45289905,1575.0,1574.5,13.99906854]
[1673837219225,0.45289905,1575.0,1574.8,1.286]
[1673837219379,0.45289905,1575.0,1574.9,6.3496]
[1673837219922,0.45289905,1575.0,1574.7,7.64752712]
[1673837220356,0.45289905,1575.0,1574.7,6.35033]
[1673837221393,0.45289905,1575.0,1574.7,13.51148614]